[Event "IIFL Wealth  4th Mumbai Junior U-13"]
[Site "Mumbai"]
[Date "2019.01.05"]
[Round "7"]
[White "Dhanvij Ansh"]
[Black "Tambe Shardul"]
[Result "1-0"]
[ECO "D18"]
[WhiteElo "1523"]
[BlackElo "1250"]
[Annotator "NA RC"]
[PlyCount "119"]
[EventDate "2018.12.30"]
[EventType "swiss"]
[EventCountry "IND"]
[SourceTitle "playchess.com"]
[Source "ChessBase"]
[SourceQuality "1"]
[TimeControl "40/5400+30:1800+30"]

1. d4 {[%emt 0:00:00]} d5 {[%emt 0:00:00]} 2. c4 {[%emt 0:00:00]} c6 {[%emt 0:00:00]} 3. Nc3 {[%emt 0:00:00]} Nf6 {[%emt 0:00:00]} 4. Nf3 {[%emt 0:00:08]} dxc4 {[%emt 0:00:01]} 5. a4 {[%emt 0:00:47]} Bf5 {[%emt 0:00:07]} 6. e3 {[%emt 0:01:50]} e6 {[%emt 0:00:14]} 7. Bxc4 {[%emt 0:00:16]} Bb4 {[%emt 0:00:07]} 8. O-O {[%emt 0:01:15]} Nbd7 {[%emt 0:00:37]} 9. Qb3 {[%emt 0:03:37]} Qb6 {[%emt 0:03:37]} 10. Nh4 {[%emt 0:06:04]} Bg6 {[%emt 0:05:51]} 11. f4 {[%emt 0:07:53]} Nd5 {[%emt 0:11:41]} 12. Nxd5 {[%emt 0:02:06]} exd5 {[%emt 0:00:21]} 13. Be2 {[%emt 0:03:06]} Be4 {[%emt 0:01:57]} 14. Qd1 {[%emt 0:02:54]} Qd8 {[%emt 0:05:11]} 15. Nf3 {[%emt 0:02:02]} f6 {[%emt 0:05:19]} 16. Bd2 {[%emt 0:06:17]} Qa5 {[%emt 0:05:40]} 17. Qe1 {[%emt 0:02:08]} Bxd2 {[%emt 0:01:00]} 18. Nxd2 {[%emt 0:00:17]} Qb6 {[%emt 0:05:35]} 19. Nxe4 {[%emt 0:04:26]} dxe4 {[%emt 0:00:11]} 20. b4 {[%emt 0:00:34]} f5 {[%emt 0:05:04]} 21. a5 {[%emt 0:05:59]} Qc7 {[%emt 0:02:58]} 22. Bc4 {[%emt 0:04:23]} Nf6 {[%emt 0:02:48]} 23. Be6 {[%emt 0:07:42]} g6 {[%emt 0:00:21]} 24. Rc1 {[%emt 0:00:57]} Qe7 {[%emt 0:00:20]} 25. Bb3 {[%emt 0:00:41]} Nd5 {[%emt 0:03:44]} 26. Rc5 {[%emt 0:04:31]} Rd8 {[%emt 0:04:53]} 27. b5 {[%emt 0:01:01]} Rd6 {[%emt 0:05:44]} 28. bxc6 {[%emt 0:01:11]} bxc6 {[%emt 0:00:08]} 29. Ba4 {[%emt 0:01:03]} Qc7 {[%emt 0:06:36]} 30. Qc1 {[%emt 0:06:13]} Ne7 {[%emt 0:00:22]} 31. d5 {[%emt 0:03:05]} O-O {[%emt 0:10:04]} 32. dxc6 {[%emt 0:00:44]} Rfd8 {[%emt 0:02:01]} 33. Qc3 {[%emt 0:03:03]} h6 {[%emt 0:05:06]} 34. Rb1 {[%emt 0:02:26]} Rb8 {[%emt 0:03:14]} 35. Rxb8+ {[%emt 0:01:37]} Qxb8 {[%emt 0:00:02]} 36. Bb3+ {[%emt 0:00:12]} Kh7 {[%emt 0:00:43]} 37. c7 {[%emt 0:00:23]} Qc8 {[%emt 0:00:07]} 38. Qe5 {[%emt 0:00:29]} Qd7 {[%emt 0:03:04]} 39. Qxe7+ {[%emt 0:01:12]} Qxe7 {[%emt 0:00:10]} 40. c8=Q {[%emt 0:00:00]} Rd8 {[%emt 0:00:00]} 41. Qc7 {[%emt 0:01:57]} Rd7 {[%emt 0:01:33]} 42. Qe5 {[%emt 0:00:46]} Qh4 {[%emt 0:03:57]} 43. Qc3 {[%emt 0:02:32]} Qe7 {[%emt 0:03:42]} 44. Qc4 {[%emt 0:01:21]} Qg7 {[%emt 0:02:31]} 45. Qc3 {[%emt 0:04:19]} Rd3 {[%emt 0:03:49]} 46. Qxg7+ {[%emt 0:00:42]} Kxg7 {[%emt 0:01:25]} 47. Rc7+ {[%emt 0:00:07]} Kf8 {[%emt 0:00:11]} 48. Bc2 {[%emt 0:00:36]} Rxe3 {[%emt 0:00:25]} 49. Rxa7 {[%emt 0:00:10]} Rc3 {[%emt 0:00:40]} 50. Ba4 {[%emt 0:00:43]} Ra3 {[%emt 0:01:56]} 51. Bb5 {[%emt 0:00:34]} Ra1+ {[%emt 0:00:47]} 52. Kf2 Ra2+ {[%emt 0:00:16]} 53. Be2 {[%emt 0:00:15]} g5 {[%emt 0:01:09]} 54. a6 {[%emt 0:01:01]} g4 {[%emt 0:02:57]} 55. Rb7 {[%emt 0:00:35]} Ra3 {[%emt 0:02:06]} 56. a7 {[%emt 0:00:27]} Rxa7 {[%emt 0:00:48]} 57. Rxa7 {[%emt 0:00:07]} Kg8 {[%emt 0:00:11]} 58. Kg3 {[%emt 0:00:13]} Kf8 {[%emt 0:00:16]} 59. Kh4 {[%emt 0:00:06]} Ke8 {[%emt 0:00:09]} 60. Kh5 {[%emt 0:00:14]} 1-0

[Event "IIFL Wealth  4th Mumbai Junior U-13"]
[Site "Mumbai"]
[Date "2019.01.05"]
[Round "7"]
[White "Ratnapriya K"]
[Black "Keshav Padmanabhan"]
[Result "1/2-1/2"]
[ECO "C88"]
[WhiteElo "1516"]
[BlackElo "1272"]
[Annotator "NA RC"]
[PlyCount "140"]
[EventDate "2018.12.30"]
[EventType "swiss"]
[EventCountry "IND"]
[SourceTitle "playchess.com"]
[Source "ChessBase"]
[SourceQuality "1"]
[TimeControl "40/5400+30:1800+30"]

1. e4 {[%emt 0:00:00]} e5 {[%emt 0:00:00]} 2. Nf3 {[%emt 0:00:10]} Nc6 {[%emt 0:00:00]} 3. Bb5 {[%emt 0:00:18]} a6 {[%emt 0:00:00]} 4. Ba4 {[%emt 0:00:11]} b5 {[%emt 0:00:06]} 5. Bb3 {[%emt 0:00:11]} Nf6 {[%emt 0:00:12]} 6. O-O {[%emt 0:00:09]} Be7 {[%emt 0:00:12]} 7. Re1 {[%emt 0:00:09]} d6 {[%emt 0:00:09]} 8. c3 {[%emt 0:00:24]} Na5 {[%emt 0:00:21]} 9. Bc2 {[%emt 0:00:11]} c5 {[%emt 0:00:08]} 10. d4 {[%emt 0:00:08]} cxd4 {[%emt 0:00:26]} 11. cxd4 {[%emt 0:00:12]} Nc6 {[%emt 0:00:31]} 12. h3 {[%emt 0:05:53]} O-O {[%emt 0:02:03]} 13. Nc3 {[%emt 0:01:48]} Bb7 {[%emt 0:08:29]} 14. d5 {[%emt 0:03:01]} Nb8 {[%emt 0:05:17]} 15. Be3 {[%emt 0:01:06]} Nbd7 {[%emt 0:02:47]} 16. Ne2 {[%emt 0:01:40]} Re8 {[%emt 0:09:09]} 17. Ng3 {[%emt 0:04:26]} g6 {[%emt 0:02:54]} 18. Qd2 {[%emt 0:02:18]} Bf8 {[%emt 0:03:04]} 19. Bh6 {[%emt 0:03:58]} Qe7 {[%emt 0:10:41]} 20. Nh4 {[%emt 0:04:11]} Rec8 {[%emt 0:19:15]} 21. Ngf5 {[%emt 0:06:53]} Qd8 {[%emt 0:14:03]} 22. Bxf8 {[%emt 0:01:44]} Qxf8 {[%emt 0:00:56]} 23. Nh6+ {[%emt 0:01:13]} Kh8 {[%emt 0:01:45]} 24. Rac1 {[%emt 0:01:22]} Rc7 {[%emt 0:02:22]} 25. Nf3 {[%emt 0:02:26]} Nb6 {[%emt 0:11:43]} 26. Qa5 {[%emt 0:03:09]} Qxh6 {[%emt 0:03:21]} 27. Qxb6 {[%emt 0:00:12]} Ne8 {[%emt 0:00:27]} 28. Red1 {[%emt 0:16:37]} Rac8 {[%emt 0:01:42]} 29. Ne1 {[%emt 0:06:00]} Qf4 {[%emt 0:01:34]} 30. g3 {[%emt 0:15:23]} Qf6 {[%emt 0:00:28]} 31. Rd2 {[%emt 0:01:44]} Qe7 {[%emt 0:00:16]} 32. Rcd1 {[%emt 0:02:30]} Nf6 {[%emt 0:00:20]} 33. Bd3 {[%emt 0:02:40]} Rc1 {[%emt 0:00:39]} 34. Nc2 {[%emt 0:00:51]} Rxd1+ {[%emt 0:00:15]} 35. Rxd1 {[%emt 0:00:10]} Qc7 {[%emt 0:00:24]} 36. Qe3 {[%emt 0:02:27]} Kg7 {[%emt 0:00:12]} 37. Kh2 {[%emt 0:03:16]} Qc5 {[%emt 0:00:35]} 38. Qf3 {[%emt 0:01:39]} h5 {[%emt 0:01:23]} 39. Qg2 {[%emt 0:03:52]} b4 {[%emt 0:00:28]} 40. Qf3 {[%emt 0:00:00]} a5 {[%emt 0:00:00]} 41. Qe3 {[%emt 0:03:13]} Rc7 {[%emt 0:02:18]} 42. Qxc5 {[%emt 0:04:08]} Rxc5 {[%emt 0:00:53]} 43. f4 {[%emt 0:01:04]} Nd7 {[%emt 0:00:47]} 44. Ne3 {[%emt 0:04:07]} Kf8 {[%emt 0:04:46]} 45. Nc4 {[%emt 0:02:42]} Ke7 {[%emt 0:01:42]} 46. Rf1 {[%emt 0:02:48]} f6 {[%emt 0:03:46]} 47. f5 {[%emt 0:07:44]} Ba6 {[%emt 0:05:10]} 48. b3 {[%emt 0:06:20]} Bxc4 {[%emt 0:00:51]} 49. Bxc4 {[%emt 0:00:12]} g5 {[%emt 0:00:33]} 50. Kg2 {[%emt 0:01:02]} Nb6 {[%emt 0:01:11]} 51. Rc1 {[%emt 0:02:20]} Nxc4 {[%emt 0:01:32]} 52. bxc4 {[%emt 0:00:12]} Kd7 {[%emt 0:00:43]} 53. Kf2 {[%emt 0:01:13]} Kc7 {[%emt 0:00:32]} 54. Ke3 {[%emt 0:00:43]} Kb6 {[%emt 0:01:04]} 55. Kd3 {[%emt 0:00:12]} Rc7 {[%emt 0:01:41]} 56. Rb1 {[%emt 0:01:47]} Kc5 {[%emt 0:04:31]} 57. a3 {[%emt 0:01:38]} Ra7 {[%emt 0:00:39]} 58. Rb2 {[%emt 0:01:10]} Ra6 {[%emt 0:00:30]} 59. Rb1 {[%emt 0:01:04]} Ra8 {[%emt 0:00:14]} 60. Ra1 {[%emt 0:00:47]} b3 {[%emt 0:02:24]} 61. Rb1 {[%emt 0:00:24]} Rb8 {[%emt 0:00:29]} 62. Rb2 {[%emt 0:00:12]} a4 {[%emt 0:00:18]} 63. Kc3 {[%emt 0:00:09]} h4 {[%emt 0:00:51]} 64. g4 {[%emt 0:00:09]} Rb6 {[%emt 0:00:19]} 65. Kd3 {[%emt 0:00:14]} Rb7 {[%emt 0:00:11]} 66. Kc3 {[%emt 0:00:11]} Rb6 {[%emt 0:00:18]} 67. Kd3 {[%emt 0:00:12]} Rb7 {[%emt 0:00:11]} 68. Kc3 {[%emt 0:00:10]} Rb6 {[%emt 0:00:05]} 69. Kd3 {[%emt 0:00:12]} Rb7 {[%emt 0:00:05]} 70. Kc3 {[%emt 0:00:09]} Rb6 {[%emt 0:00:01]} 1/2-1/2

[Event "IIFL Wealth  4th Mumbai Junior U-13"]
[Site "Mumbai"]
[Date "2019.01.05"]
[Round "7"]
[White "Abhinav Dubey"]
[Black "Kinkhabwala Hrithik"]
[Result "0-1"]
[ECO "C55"]
[WhiteElo "1497"]
[BlackElo "1244"]
[Annotator "NA RC"]
[PlyCount "86"]
[EventDate "2018.12.30"]
[EventType "swiss"]
[EventCountry "IND"]
[SourceTitle "playchess.com"]
[Source "ChessBase"]
[SourceQuality "1"]
[TimeControl "40/5400+30:1800+30"]

1. e4 {[%emt 0:00:00]} e5 {[%emt 0:00:00]} 2. Nf3 {[%emt 0:00:00]} Nc6 {[%emt 0:00:00]} 3. d4 {[%emt 0:00:00]} exd4 {[%emt 0:00:00]} 4. Bc4 {[%emt 0:00:00]} Nf6 {[%emt 0:00:00]} 5. e5 {[%emt 0:00:00]} d5 {[%emt 0:00:00]} 6. Bb5 {[%emt 0:00:05]} Ne4 {[%emt 0:00:00]} 7. Nxd4 {[%emt 0:00:08]} Bc5 {[%emt 0:00:00]} 8. Be3 {[%emt 0:00:52]} Bd7 {[%emt 0:00:01]} 9. Bxc6 bxc6 {[%emt 0:00:16]} 10. O-O {[%emt 0:00:47]} Qe7 {[%emt 0:00:32]} 11. f3 {[%emt 0:10:42]} Nd6 {[%emt 0:01:06]} 12. f4 {[%emt 0:04:56]} Nc4 {[%emt 0:01:45]} 13. Bc1 {[%emt 0:02:08]} O-O {[%emt 0:05:40]} 14. Kh1 {[%emt 0:00:46]} f6 {[%emt 0:03:16]} 15. e6 {[%emt 0:11:00]} Bxd4 {[%emt 0:04:36]} 16. exd7 {[%emt 0:00:53]} Bxb2 {[%emt 0:05:54]} 17. Bxb2 {[%emt 0:00:12]} Nxb2 {[%emt 0:00:02]} 18. Qd4 {[%emt 0:00:19]} Nc4 {[%emt 0:02:23]} 19. Nc3 {[%emt 0:00:34]} Qe3 {[%emt 0:02:34]} 20. Qxe3 {[%emt 0:00:42]} Nxe3 {[%emt 0:00:02]} 21. Rf3 {[%emt 0:00:11]} Nxc2 22. Rc1 {[%emt 0:00:10]} Na3 {[%emt 0:30:37]} 23. Na4 {[%emt 0:00:11]} Nc4 {[%emt 0:02:25]} 24. Nc5 {[%emt 0:00:11]} Kf7 {[%emt 0:01:16]} 25. Re1 {[%emt 0:01:39]} Rfd8 {[%emt 0:00:51]} 26. Rf2 {[%emt 0:01:16]} Nd6 {[%emt 0:08:20]} 27. Rd2 {[%emt 0:02:42]} Rab8 {[%emt 0:02:15]} 28. h3 {[%emt 0:00:45]} Rb5 {[%emt 0:00:43]} 29. Rc2 {[%emt 0:00:41]} Nc4 {[%emt 0:00:41]} 30. Re8 {[%emt 0:09:22]} Rxe8 {[%emt 0:01:44]} 31. dxe8=Q+ {[%emt 0:00:04]} Kxe8 {[%emt 0:00:05]} 32. Ne6 {[%emt 0:00:12]} Kf7 {[%emt 0:01:39]} 33. Nxc7 {[%emt 0:00:12]} Rb2 {[%emt 0:00:43]} 34. Rc3 {[%emt 0:00:17]} Rxa2 {[%emt 0:00:21]} 35. f5 {[%emt 0:00:05]} Ke7 {[%emt 0:02:15]} 36. Rg3 {[%emt 0:00:36]} Kd6 {[%emt 0:04:54]} 37. Rxg7 {[%emt 0:00:14]} d4 {[%emt 0:00:42]} 38. Ne8+ {[%emt 0:00:24]} Ke5 {[%emt 0:00:29]} 39. Rd7 {[%emt 0:01:09]} Nb6 {[%emt 0:01:57]} 40. Rd6 {[%emt 0:00:00]} Nd5 {[%emt 0:00:00]} 41. Rxc6 {[%emt 0:02:13]} d3 {[%emt 0:01:56]} 42. Rc1 {[%emt 0:00:50]} d2 {[%emt 0:00:22]} 43. Rd1 {[%emt 0:00:07]} Ne3 {[%emt 0:00:23]} 0-1

[Event "IIFL Wealth  4th Mumbai Junior U-13"]
[Site "Mumbai"]
[Date "2019.01.05"]
[Round "7"]
[White "Marium Fatima"]
[Black "Aarna Chugh"]
[Result "1-0"]
[ECO "A46"]
[WhiteElo "1494"]
[BlackElo "1164"]
[Annotator "NA RC"]
[PlyCount "129"]
[EventDate "2018.12.30"]
[EventType "swiss"]
[EventCountry "IND"]
[SourceTitle "playchess.com"]
[Source "ChessBase"]
[SourceQuality "1"]
[TimeControl "40/5400+30:1800+30"]

1. d4 {[%emt 0:00:00]} Nf6 {[%emt 0:00:00]} 2. Nf3 {[%emt 0:00:00]} e6 {[%emt 0:00:06]} 3. g3 {[%emt 0:00:00]} d5 {[%emt 0:02:40]} 4. Bg2 {[%emt 0:00:00]} c5 {[%emt 0:04:54]} 5. b3 {[%emt 0:00:41]} Nc6 {[%emt 0:03:56]} 6. Bb2 {[%emt 0:00:07]} Be7 {[%emt 0:02:03]} 7. O-O {[%emt 0:00:08]} O-O {[%emt 0:00:42]} 8. Nbd2 {[%emt 0:00:14]} b6 {[%emt 0:02:38]} 9. c4 {[%emt 0:00:40]} Bb7 {[%emt 0:04:54]} 10. Rc1 {[%emt 0:00:34]} Rc8 {[%emt 0:08:16]} 11. dxc5 {[%emt 0:08:53]} dxc4 {[%emt 0:10:13]} 12. Bxf6 {[%emt 0:03:08]} Bxf6 {[%emt 0:04:09]} 13. Nxc4 {[%emt 0:02:28]} bxc5 {[%emt 0:10:54]} 14. Nd6 {[%emt 0:00:42]} Rb8 {[%emt 0:01:19]} 15. Rxc5 {[%emt 0:07:14]} Ba8 {[%emt 0:06:07]} 16. Ne4 {[%emt 0:06:47]} Be7 {[%emt 0:03:18]} 17. Rc1 {[%emt 0:03:43]} Nb4 {[%emt 0:04:24]} 18. Nc3 {[%emt 0:02:14]} Bf6 {[%emt 0:04:27]} 19. a3 {[%emt 0:00:45]} Nc6 {[%emt 0:02:07]} 20. Qc2 {[%emt 0:09:40]} Qb6 {[%emt 0:02:53]} 21. b4 {[%emt 0:06:28]} Rbc8 {[%emt 0:02:32]} 22. Ne4 {[%emt 0:03:30]} Be7 {[%emt 0:02:24]} 23. Neg5 {[%emt 0:00:57]} Bxg5 {[%emt 0:00:41]} 24. Nxg5 {[%emt 0:00:07]} g6 {[%emt 0:00:55]} 25. Qb2 {[%emt 0:05:43]} Nd4 {[%emt 0:03:34]} 26. Bxa8 {[%emt 0:00:55]} Rxa8 {[%emt 0:00:35]} 27. e3 {[%emt 0:00:11]} Nf5 {[%emt 0:01:00]} 28. Ne4 {[%emt 0:02:48]} Ng7 {[%emt 0:02:55]} 29. Nf6+ {[%emt 0:00:31]} Kh8 {[%emt 0:00:09]} 30. Nd7 {[%emt 0:00:20]} Qd6 {[%emt 0:01:09]} 31. Nxf8 {[%emt 0:00:15]} Rxf8 {[%emt 0:00:41]} 32. Rfd1 {[%emt 0:00:05]} Qe7 {[%emt 0:00:43]} 33. Qd4 {[%emt 0:00:15]} e5 {[%emt 0:00:20]} 34. Qd7 {[%emt 0:00:26]} Qf6 {[%emt 0:00:32]} 35. Qd6 {[%emt 0:00:38]} Qxd6 {[%emt 0:00:31]} 36. Rxd6 {[%emt 0:00:08]} Nf5 {[%emt 0:00:40]} 37. Ra6 {[%emt 0:00:17]} Rd8 {[%emt 0:01:06]} 38. Rxa7 {[%emt 0:00:32]} Kg7 {[%emt 0:00:23]} 39. Rcc7 {[%emt 0:00:54]} Rd1+ {[%emt 0:00:42]} 40. Kg2 {[%emt 0:00:00]} Nh6 {[%emt 0:00:00]} 41. Rd7 {[%emt 0:00:32]} Ra1 {[%emt 0:00:33]} 42. Rd2 {[%emt 0:00:11]} Kf6 {[%emt 0:00:50]} 43. b5 {[%emt 0:00:32]} Rb1 {[%emt 0:00:34]} 44. a4 {[%emt 0:00:07]} Rb4 {[%emt 0:01:06]} 45. Ra6+ {[%emt 0:00:25]} Kg7 {[%emt 0:00:13]} 46. b6 {[%emt 0:00:05]} Nf5 {[%emt 0:00:08]} 47. a5 {[%emt 0:00:19]} Ne7 {[%emt 0:01:00]} 48. Ra8 {[%emt 0:00:28]} Nc6 {[%emt 0:00:24]} 49. Rc2 {[%emt 0:00:45]} Ne7 {[%emt 0:01:07]} 50. Rc7 {[%emt 0:02:42]} Nd5 {[%emt 0:01:50]} 51. Rd7 {[%emt 0:00:13]} Nf6 {[%emt 0:00:05]} 52. Rda7 {[%emt 0:00:59]} Rb2 {[%emt 0:01:37]} 53. b7 {[%emt 0:00:26]} Nd7 {[%emt 0:00:16]} 54. Rd8 {[%emt 0:00:17]} Nc5 {[%emt 0:00:17]} 55. b8=Q {[%emt 0:00:20]} Rxb8 {[%emt 0:00:06]} 56. Rxb8 {[%emt 0:00:18]} Nd3 {[%emt 0:00:28]} 57. Rc7 {[%emt 0:00:35]} e4 {[%emt 0:00:12]} 58. a6 {[%emt 0:00:18]} Ne5 {[%emt 0:00:08]} 59. a7 {[%emt 0:00:20]} Nf3 {[%emt 0:00:10]} 60. a8=Q {[%emt 0:00:19]} Kh6 {[%emt 0:00:12]} 61. Rc5 {[%emt 0:00:34]} Ne1+ {[%emt 0:00:34]} 62. Kf1 {[%emt 0:00:11]} Nd3 {[%emt 0:00:08]} 63. Ra5 {[%emt 0:00:32]} Nc1 {[%emt 0:00:40]} 64. Rg8 {[%emt 0:00:32]} Nd3 {[%emt 0:00:15]} 65. Qf8# {[%emt 0:00:11]} 1-0

[Event "IIFL Wealth  4th Mumbai Junior U-13"]
[Site "Mumbai"]
[Date "2019.01.05"]
[Round "7"]
[White "Shravan Swaminathan"]
[Black "Haldankar Dhruv"]
[Result "1-0"]
[ECO "A46"]
[WhiteElo "1488"]
[BlackElo "1245"]
[Annotator "NA RC"]
[PlyCount "131"]
[EventDate "2018.12.30"]
[EventType "swiss"]
[EventCountry "IND"]
[SourceTitle "playchess.com"]
[Source "ChessBase"]
[SourceQuality "1"]
[TimeControl "40/5400+30:1800+30"]

1. d4 Nf6 2. Nf3 e6 3. Bf4 d5 4. e3 c5 5. c3 Bd6 6. Bg3 Nc6 7. Nbd2 O-O 8. Bd3 b6 9. Ne5 Bb7 10. f4 Ne7 11. Qf3 Nf5 12. Bf2 Be7 13. Ng4 Nd6 14. Nxf6+ Bxf6 15. g4 g6 16. h4 Qd7 17. g5 Bh8 18. h5 Rad8 19. Qh3 Nf5 20. Rh2 cxd4 21. exd4 Rc8 22. Nf3 Rc7 23. Kd2 Rfc8 24. Nh4 Nxh4 25. Qxh4 Qe8 26. Bc2 a6 27. Re1 Re7 28. Qg3 Rcc7 29. Reh1 Rcd7 30. Qd3 Rc7 31. hxg6 fxg6 32. Qxg6+ Qxg6 33. Bxg6 e5 34. Bf5 exd4 35. cxd4 Bc8 36. Bd3 Bg4 37. Rh6 Bf3 38. R1h3 Be4 39. Rxb6 a5 40. Re3 Bxd3 41. Kxd3 Rxe3+ 42. Bxe3 Bg7 43. Rb5 Kf7 44. Rxd5 Rb7 45. b3 Ra7 46. Rb5 a4 47. d5 axb3 48. axb3 Rd7 49. Bd4 Bf8 50. Ke4 h5 51. gxh6 Bxh6 52. Be5 Bf8 53. Rb6 Be7 54. b4 Ra7 55. b5 Ra4+ 56. Kf5 Ra7 57. d6 Bf8 58. Rc6 Ra8 59. b6 Rb8 60. b7 Rxb7 61. Rc7+ Rxc7 62. dxc7 Bd6 63. c8=Q Bxe5 64. Qd7+ Kf8 65. Kg6 Bxf4 66. Qd8# 1-0

[Event "IIFL Wealth  4th Mumbai Junior U-13"]
[Site "Mumbai"]
[Date "2019.01.05"]
[Round "7"]
[White "Adireddy Arjun"]
[Black "Yash Joshi"]
[Result "1-0"]
[ECO "B76"]
[WhiteElo "1468"]
[BlackElo "1389"]
[Annotator "NA RC"]
[PlyCount "99"]
[EventDate "2018.12.30"]
[EventType "swiss"]
[EventCountry "IND"]
[SourceTitle "playchess.com"]
[Source "ChessBase"]
[SourceQuality "1"]
[TimeControl "40/5400+30:1800+30"]

1. e4 {[%emt 0:00:00]} c5 {[%emt 0:00:00]} 2. Nf3 {[%emt 0:00:00]} d6 {[%emt 0:00:00]} 3. d4 {[%emt 0:00:00]} cxd4 {[%emt 0:00:00]} 4. Nxd4 {[%emt 0:00:00]} Nf6 {[%emt 0:00:00]} 5. Nc3 {[%emt 0:00:04]} g6 {[%emt 0:00:03]} 6. Be3 {[%emt 0:00:08]} Bg7 {[%emt 0:00:05]} 7. f3 {[%emt 0:00:05]} O-O {[%emt 0:00:06]} 8. Qd2 {[%emt 0:00:03]} Nc6 {[%emt 0:00:06]} 9. O-O-O {[%emt 0:00:06]} d5 {[%emt 0:00:06]} 10. Qe1 {[%emt 0:12:59]} e5 {[%emt 0:00:37]} 11. Nxc6 {[%emt 0:03:56]} bxc6 {[%emt 0:00:09]} 12. Bc4 {[%emt 0:10:50]} d4 {[%emt 0:23:32]} 13. Na4 {[%emt 0:01:39]} c5 {[%emt 0:01:42]} 14. Bd2 {[%emt 0:00:43]} Qc7 {[%emt 0:04:25]} 15. b3 {[%emt 0:01:07]} Bd7 {[%emt 0:04:01]} 16. Nb2 {[%emt 0:00:09]} Rab8 {[%emt 0:03:04]} 17. a4 {[%emt 0:01:17]} Bc6 {[%emt 0:08:07]} 18. Ba5 {[%emt 0:10:02]} Qb7 {[%emt 0:01:03]} 19. Qe2 {[%emt 0:00:20]} Qe7 {[%emt 0:03:33]} 20. Ba6 {[%emt 0:03:29]} Bb7 {[%emt 0:03:02]} 21. Bb5 {[%emt 0:02:07]} Nd7 {[%emt 0:03:08]} 22. Ba6 {[%emt 0:04:58]} Bxa6 {[%emt 0:01:29]} 23. Qxa6 {[%emt 0:00:08]} Nb6 {[%emt 0:00:15]} 24. Kb1 {[%emt 0:00:56]} Rfc8 {[%emt 0:04:35]} 25. Bxb6 {[%emt 0:03:17]} axb6 {[%emt 0:00:32]} 26. Qc4 {[%emt 0:00:21]} Qg5 {[%emt 0:04:34]} 27. Rhg1 {[%emt 0:01:48]} Kf8 {[%emt 0:01:49]} 28. g3 {[%emt 0:01:13]} Rc7 {[%emt 0:02:58]} 29. Nd3 {[%emt 0:00:52]} Qe7 {[%emt 0:06:08]} 30. Kb2 {[%emt 0:00:23]} Rcb7 {[%emt 0:01:03]} 31. Ra1 {[%emt 0:00:34]} Bh6 {[%emt 0:01:43]} 32. a5 {[%emt 0:00:38]} bxa5 {[%emt 0:04:33]} 33. Rxa5 {[%emt 0:00:48]} Bd2 {[%emt 0:01:42]} 34. Ra4 {[%emt 0:01:50]} Bb4 {[%emt 0:02:53]} 35. h4 {[%emt 0:04:16]} Ra7 {[%emt 0:00:56]} 36. Rxa7 {[%emt 0:03:54]} Qxa7 {[%emt 0:00:16]} 37. Nxb4 {[%emt 0:00:11]} Rxb4 {[%emt 0:02:44]} 38. Qd5 {[%emt 0:01:12]} Qc7 {[%emt 0:05:43]} 39. f4 {[%emt 0:02:13]} exf4 {[%emt 0:04:45]} 40. gxf4 {[%emt 0:00:00]} Qb6 {[%emt 0:00:00]} 41. Rd1 {[%emt 0:02:51]} Rb5 {[%emt 0:04:57]} 42. f5 {[%emt 0:05:00]} gxf5 {[%emt 0:03:10]} 43. exf5 Qf6 {[%emt 0:07:21]} 44. Qa8+ {[%emt 0:03:12]} Kg7 {[%emt 0:00:10]} 45. Rg1+ {[%emt 0:00:06]} Kh6 {[%emt 0:01:27]} 46. Qe4 {[%emt 0:00:49]} d3+ {[%emt 0:03:59]} 47. c3 {[%emt 0:00:11]} Rb4 {[%emt 0:05:38]} 48. Qe3+ {[%emt 0:00:35]} Kh5 {[%emt 0:00:33]} 49. Rg5+ {[%emt 0:00:14]} Kxh4 {[%emt 0:00:58]} 50. Qg3# {[%emt 0:00:07]} 1-0

[Event "IIFL Wealth  4th Mumbai Junior U-13"]
[Site "Mumbai"]
[Date "2019.01.05"]
[Round "7"]
[White "Shrey Nilkant"]
[Black "Jain Vihaan"]
[Result "1-0"]
[ECO "B23"]
[WhiteElo "1466"]
[BlackElo "1149"]
[Annotator "NA RC"]
[PlyCount "97"]
[EventDate "2018.12.30"]
[EventType "swiss"]
[EventCountry "IND"]
[SourceTitle "playchess.com"]
[Source "ChessBase"]
[SourceQuality "1"]
[TimeControl "40/5400+30:1800+30"]

1. e4 {[%emt 0:00:11]} c5 {[%emt 0:03:24]} 2. Nc3 {[%emt 0:00:57]} Nc6 {[%emt 0:00:18]} 3. f4 {[%emt 0:00:15]} e6 {[%emt 0:00:11]} 4. Nf3 {[%emt 0:00:07]} d5 {[%emt 0:00:06]} 5. Bb5 {[%emt 0:00:51]} dxe4 {[%emt 0:00:46]} 6. Bxc6+ {[%emt 0:01:08]} bxc6 {[%emt 0:00:12]} 7. Nxe4 {[%emt 0:00:12]} Nf6 {[%emt 0:01:06]} 8. Qe2 {[%emt 0:07:15]} Nxe4 {[%emt 0:05:01]} 9. Qxe4 {[%emt 0:00:01]} Qd5 {[%emt 0:00:17]} 10. d3 {[%emt 0:01:32]} c4 {[%emt 0:04:05]} 11. Qxc4 {[%emt 0:06:29]} Qxc4 {[%emt 0:00:12]} 12. dxc4 {[%emt 0:00:02]} Ba6 {[%emt 0:00:14]} 13. b3 {[%emt 0:05:14]} Bc5 {[%emt 0:01:21]} 14. Bb2 {[%emt 0:03:24]} O-O {[%emt 0:01:20]} 15. Ne5 Rfc8 {[%emt 0:01:07]} 16. Ke2 {[%emt 0:06:48]} f6 {[%emt 0:01:17]} 17. Nf3 {[%emt 0:01:09]} Rab8 {[%emt 0:01:15]} 18. Bd4 {[%emt 0:06:59]} Bxd4 {[%emt 0:03:46]} 19. Nxd4 {[%emt 0:05:52]} Kf7 {[%emt 0:00:55]} 20. Kf2 {[%emt 0:02:21]} c5 {[%emt 0:02:19]} 21. Nf3 {[%emt 0:04:07]} Rd8 {[%emt 0:00:41]} 22. Rad1 {[%emt 0:02:50]} Bb7 {[%emt 0:01:52]} 23. Rhe1 {[%emt 0:04:26]} Rbc8 {[%emt 0:02:53]} 24. Rd2 {[%emt 0:06:55]} Bxf3 {[%emt 0:01:15]} 25. Rxd8 {[%emt 0:00:01]} Rxd8 {[%emt 0:00:10]} 26. Kxf3 {[%emt 0:00:13]} Rd2 {[%emt 0:00:25]} 27. Re2 {[%emt 0:00:09]} Rd4 {[%emt 0:01:13]} 28. Ke3 {[%emt 0:00:45]} Ke7 {[%emt 0:04:11]} 29. Rd2 {[%emt 0:00:12]} Rxd2 {[%emt 0:00:11]} 30. Kxd2 {[%emt 0:00:01]} Kd6 {[%emt 0:00:44]} 31. c3 {[%emt 0:00:29]} e5 {[%emt 0:00:07]} 32. fxe5+ {[%emt 0:00:22]} fxe5 {[%emt 0:00:11]} 33. Ke3 {[%emt 0:00:06]} a5 {[%emt 0:00:13]} 34. a3 {[%emt 0:00:08]} Ke6 {[%emt 0:00:19]} 35. Ke4 {[%emt 0:00:15]} g5 {[%emt 0:00:07]} 36. g4 {[%emt 0:00:25]} h6 {[%emt 0:04:32]} 37. b4 {[%emt 0:00:46]} cxb4 {[%emt 0:00:36]} 38. cxb4 {[%emt 0:00:09]} axb4 {[%emt 0:00:29]} 39. axb4 {[%emt 0:00:02]} Kf6 {[%emt 0:00:56]} 40. c5 {[%emt 0:00:00]} Ke6 {[%emt 0:00:00]} 41. b5 {[%emt 0:00:27]} Kd7 {[%emt 0:00:11]} 42. Kxe5 {[%emt 0:00:07]} h5 {[%emt 0:00:04]} 43. gxh5 {[%emt 0:00:12]} Ke7 {[%emt 0:00:04]} 44. c6 {[%emt 0:00:10]} Kf7 {[%emt 0:00:06]} 45. c7 {[%emt 0:00:05]} Ke7 {[%emt 0:00:09]} 46. c8=Q {[%emt 0:00:11]} Kf7 {[%emt 0:00:07]} 47. Qd7+ {[%emt 0:00:08]} Kf8 {[%emt 0:00:07]} 48. Kf6 {[%emt 0:00:06]} g4 {[%emt 0:00:04]} 49. Qc8# {[%emt 0:00:06] Ke7+} 1-0